bitfinex-derivatives/quotes_SOLF0:USTF0_20260308
["timestamp","ask_amount","ask_price","bid_price","bid_amount"]
[1772978947039,10.967,82.065,82.01,14.68437697]
[1772978947634,10.967,82.065,82.012,10.974]
[1772978947841,10.967,82.065,82.013,14.68611734]
[1772978948842,10.967,82.065,82.014,10.974]
[1772978949143,10.967,82.065,82.015,14.66388965]
[1772978949946,10.967,82.065,82.016,10.973]
[1772978950244,10.967,82.065,82.017,14.66549102]
[1772978953244,10.966,82.073,82.018,14.67085342]
[1772978954844,10.966,82.073,82.022,14.67648607]
[1772978955343,11.26898776,82.106,82.022,14.67648607]
[1772978955645,9.80093522,82.105,82.022,14.67648607]
[1772978955840,9.80093522,82.104,82.022,14.67648607]
[1772978956040,9.80093522,82.103,82.022,14.67648607]
[1772978956235,9.80093522,82.102,82.022,14.67648607]
[1772978956440,10.963,82.098,82.04,14.67799589]
[1772978956636,2.12030281,82.124,82.04,14.67799589]
[1772978956842,9.79636157,82.123,82.04,14.67799589]
[1772978957040,10.964,82.091,82.04,14.67799589]
[1772978958541,10.962,82.101,82.043,14.67717801]
[1772978958838,2.12030281,82.124,82.043,14.67717801]
[1772978959046,9.78849692,82.123,82.043,14.67717801]
[1772978959240,9.78849692,82.122,82.043,14.67717801]
[1772978959440,9.78849692,82.121,82.043,14.67717801]
[1772978959635,9.78849692,82.12,82.043,14.67717801]
[1772978959841,9.78849692,82.119,82.043,14.67717801]
[1772978960044,9.78849692,82.118,82.043,14.67717801]
[1772978960245,9.78849692,82.117,82.043,14.67717801]
[1772978960444,9.78849692,82.116,82.043,14.67717801]
[1772978960646,9.78849692,82.115,82.043,14.67717801]
[1772978960843,10.964,82.087,82.043,14.67717801]
[1772978965046,10.965,82.08,82.043,14.67717801]
[1772978967251,10.964,82.089,82.043,14.67717801]
[1772978969353,10.963,82.099,82.043,14.67717801]
[1772978970353,10.963,82.092,82.044,14.58848953]
[1772978971054,10.963,82.092,82.048,14.57095062]
[1772978971351,10.962,82.1,82.048,14.57095062]
[1772978972752,10.963,82.093,82.05,14.56613909]
[1772978973854,10.964,82.085,82.041,10.97]
[1772978974049,10.964,82.085,82.042,14.5678419]
[1772978975953,10.964,82.084,82.042,14.5678419]
[1772978976657,10.965,82.078,82.042,14.5678419]
[1772978977558,10.964,82.086,82.042,14.5678419]
[1772978985061,9.74264454,82.112,82.045,14.66885871]
[1772978985256,11.32495496,82.144,82.045,14.66885871]
[1772978985462,9.7469353,82.143,82.045,14.66885871]
[1772978985761,9.7469353,82.142,82.045,14.66885871]
[1772978985958,9.7469353,82.141,82.045,14.66885871]
[1772978986159,9.7469353,82.14,82.045,14.66885871]
[1772978986463,9.7469353,82.139,82.045,14.66885871]
[1772978986662,9.7469353,82.138,82.045,14.66885871]
[1772978986863,10.959,82.124,82.074,14.64545431]
[1772978989770,9.74678672,82.123,82.063,14.63581635]
[1772978989966,9.74678672,82.122,82.063,14.63581635]
[1772978990166,9.74678672,82.121,82.063,14.63581635]
[1772978990366,9.74678672,82.12,82.031,14.63581635]
[1772978990566,9.74678672,82.119,82.031,14.63581635]
[1772978990763,10.963,82.096,82.05,14.62536876]
[1772978991470,10.964,82.089,82.05,14.62536876]
[1772978993364,10.963,82.098,82.05,14.62536876]
[1772978993570,11.32495496,82.131,82.05,14.62536876]
[1772978993769,21.08007461,82.13,82.05,14.62536876]
[1772978993969,10.963,82.092,82.05,14.62536876]
[1772978995267,10.964,82.084,82.05,14.62536876]
[1772978996874,10.966,82.075,82.024,14.66547372]
[1772978997463,10.965,82.084,82.027,14.66547372]
[1772978998471,21.917,82.131,82.036,14.66626683]
[1772978998472,10.963,82.094,82.036,14.66626683]
[1772978999877,10.963,82.094,82.038,14.67137642]
[1772979000474,10.963,82.094,82.04,10.97]
[1772979000672,10.963,82.094,82.041,14.67257421]
[1772979002077,10.964,82.084,82.041,14.67257421]
[1772979003574,10.963,82.092,82.043,10.97]
[1772979003774,10.963,82.092,82.044,14.51179621]
[1772979004678,10.963,82.092,82.045,10.97]
[1772979004980,10.963,82.092,82.046,14.51356162]
[1772979007978,10.963,82.092,82.048,14.52822239]
[1772979008890,10.963,82.092,82.05,14.52653821]
[1772979020487,10.961,82.111,82.05,14.52653821]
[1772979021891,10.962,82.103,82.052,14.54339268]
[1772979030393,10.962,82.103,82.053,10.968]
[1772979030799,10.962,82.103,82.054,14.56766732]
[1772979034303,10.962,82.103,82.057,14.5653236]
[1772979035305,10.963,82.095,82.057,14.5653236]
[1772979037604,11.32495496,82.118,82.057,14.5653236]
[1772979037909,9.80910907,82.117,82.057,14.5653236]
[1772979038104,9.80910907,82.116,82.057,14.5653236]
[1772979038302,15.14727046,82.146,82.069,14.49801658]
[1772979038303,7.85879578,82.142,82.069,14.49801658]
[1772979038505,7.85879578,82.141,82.069,14.49801658]
[1772979038901,2.11923111,82.164,82.093,12.62054059]
[1772979039108,7.72555534,82.167,82.093,12.62054059]
[1772979040803,7.72555534,82.167,82.122,12.62054059]
[1772979041607,8.22943089,82.165,82.066,12.62054059]
[1772979041803,8.22920178,82.163,82.066,12.62054059]
[1772979042006,8.22920178,82.161,82.066,12.62054059]
[1772979042306,8.25949544,82.137,82.079,12.62054059]
[1772979042704,8.32272612,82.133,82.079,12.62054059]
[1772979043500,8.35262178,82.143,82.086,12.62054059]
[1772979044906,8.29745599,82.157,82.098,12.62054059]
[1772979046814,8.29745599,82.157,82.109,12.62054059]
[1772979047505,22.75586081,82.218,82.06,62.0]
[1772979047506,8.39785968,82.154,82.096,10.963]
[1772979047812,8.39785968,82.154,82.097,12.62054059]
[1772979048305,8.39785968,82.154,82.1,12.62054059]
[1772979049910,8.39785968,82.154,82.106,12.62054059]
[1772979051313,19.35285968,82.154,82.106,12.62054059]
[1772979051915,8.39785968,82.154,82.106,12.62054059]
[1772979052611,8.82874202,82.151,82.106,12.62054059]
[1772979052803,8.82874202,82.151,82.06,62.0]
[1772979052804,8.82874202,82.151,82.064,12.62054059]
[1772979053711,8.82874202,82.151,82.081,12.62054059]
[1772979054916,10.958,82.129,82.081,12.62054059]
[1772979055210,8.87788725,82.128,82.081,12.62054059]
[1772979056816,10.959,82.127,82.081,12.62054059]
[1772979063618,10.959,82.127,82.04,62.0]
[1772979063619,9.00856935,82.142,82.096,11.95650774]
[1772979063817,9.00856935,82.142,82.084,11.95650774]
[1772979064519,10.958,82.132,82.087,11.95650774]
[1772979066417,10.958,82.132,82.088,10.964]
[1772979066618,10.958,82.132,82.089,12.12254254]
[1772979067524,9.15620905,82.126,82.089,12.12254254]
[1772979070018,9.17736388,82.124,82.071,12.12254254]
[1772979071925,10.96,82.12,82.071,12.12254254]
[1772979072122,20.21506766,82.12,82.071,12.12254254]
[1772979074025,9.34373216,82.116,82.071,12.12254254]
[1772979074415,10.96,82.114,82.071,12.12254254]
[1772979076328,9.34373216,82.116,82.075,12.12254254]
[1772979077731,9.34373216,82.116,82.077,12.12254254]
[1772979080135,9.34373216,82.116,82.08,12.12254254]
[1772979081741,9.34373216,82.116,82.083,10.965]
[1772979082040,9.34373216,82.116,82.08,12.12254254]
[1772979095453,9.34373216,82.116,82.012,37.57586712]
[1772979095454,9.34373216,82.116,82.069,13.57657122]
[1772979096555,9.34373216,82.116,82.071,10.966]
[1772979096752,9.34373216,82.116,82.072,13.57657122]
[1772979097757,9.34373216,82.116,82.075,13.57657122]
[1772979098855,9.34373216,82.116,82.077,10.965]
[1772979099056,9.34373216,82.116,82.078,13.57657122]
[1772979099259,9.34373216,82.116,82.08,10.965]
[1772979099561,9.34373216,82.116,82.081,13.57657122]
[1772979105151,22.75586081,82.178,82.047,12.47580471]
[1772979105152,9.90660746,82.138,82.084,13.57657122]
[1772979105355,9.9209018,82.136,82.084,13.57657122]
[1772979105557,9.9209018,82.134,82.084,13.57657122]
[1772979106560,9.9209018,82.134,82.094,13.57657122]
[1772979111162,10.00836509,82.13,82.094,13.57657122]
[1772979118170,10.23951717,82.146,82.094,13.57657122]
[1772979118373,10.23951717,82.144,82.094,13.57657122]
[1772979118572,10.23951717,82.142,82.094,13.57657122]
[1772979118771,10.28376172,82.14,82.094,13.57657122]
[1772979119274,10.28376172,82.14,82.095,10.963]
[1772979119476,10.28376172,82.14,82.096,13.57657122]
[1772979120772,10.28376172,82.14,82.097,10.963]
[1772979120968,10.28376172,82.14,82.098,13.57657122]
[1772979122676,10.28376172,82.14,82.1,10.962]
[1772979122874,10.28376172,82.14,82.101,13.57846576]
[1772979123073,10.955,82.155,82.101,13.57846576]
[1772979123272,11.38486292,82.166,82.064,12.18]
[1772979123273,10.28730355,82.153,82.12,24.53846576]
[1772979123474,10.28730355,82.164,82.121,13.57846576]
[1772979123670,10.28739527,82.162,82.121,13.57846576]
[1772979123873,9.8131369,82.161,82.121,13.57846576]
[1772979124072,10.28739527,82.162,82.121,13.57846576]
[1772979124871,10.28739527,82.162,82.125,13.73311521]
[1772979130583,10.954,82.161,82.125,13.73311521]
[1772979133886,21.02657522,82.161,82.125,13.73311521]
[1772979135694,11.38486292,82.194,82.125,13.73311521]
[1772979135695,10.09586988,82.172,82.125,13.73311521]
[1772979136894,10.953,82.169,82.125,13.73311521]
[1772979138691,10.09586988,82.172,82.126,10.959]
[1772979138890,10.952,82.176,82.127,13.73311521]
[1772979139800,10.952,82.176,82.129,13.73311521]
[1772979139995,21.06547806,82.176,82.129,13.73311521]
[1772979140191,10.11347806,82.175,82.129,13.73311521]
[1772979140598,10.14372301,82.171,82.119,13.73311521]
[1772979140800,10.14372301,82.171,82.109,13.73311521]
[1772979141099,10.14372301,82.169,82.109,13.73311521]
[1772979141294,9.74137616,82.17,82.109,13.73311521]
[1772979141295,10.15302919,82.167,82.109,13.73311521]
[1772979141898,10.956,82.145,82.109,13.73311521]
[1772979142297,10.16199288,82.145,82.109,13.73311521]
[1772979146606,9.8918371,82.185,82.112,13.73311521]
[1772979146800,9.8918371,82.183,82.112,13.73311521]
[1772979147002,9.8918371,82.181,82.112,13.73311521]
[1772979147300,9.8918371,82.151,82.112,13.73311521]
[1772979147807,9.90044511,82.149,82.095,10.963]
[1772979148006,9.90044511,82.149,82.096,13.73311521]
[1772979151205,9.88916145,82.146,82.096,13.73311521]
[1772979151800,11.38486292,82.173,82.093,298.61928373]
[1772979151801,9.88902486,82.143,82.093,298.61928373]
[1772979152102,9.88902486,82.141,82.093,298.61928373]
[1772979152308,9.89693638,82.139,82.093,298.61928373]
[1772979153008,9.88700065,82.132,82.093,298.61928373]
[1772979154911,9.9401086,82.127,82.093,298.61928373]
[1772979155409,9.94810805,82.124,82.093,298.61928373]
[1772979157813,9.93545488,82.122,82.093,298.61928373]
[1772979158408,10.96,82.118,82.093,298.61928373]
[1772979158613,9.94297933,82.117,82.093,298.61928373]
[1772979159812,10.96,82.116,82.093,298.61928373]
[1772979164221,10.961,82.109,82.084,13.73311521]
[1772979168115,10.01938739,82.127,82.084,13.73311521]
[1772979169822,10.96,82.119,82.084,13.73311521]
[1772979170422,10.01938739,82.127,82.084,13.73311521]
[1772979171114,10.96,82.121,82.084,13.73311521]
[1772979172723,20.70669564,82.121,82.084,13.73311521]
[1772979172918,9.74669564,82.12,82.084,13.73311521]
[1772979180631,10.96,82.121,82.084,13.73311521]
[1772979181827,9.85150426,82.12,82.084,13.73311521]
[1772979184531,10.959,82.128,82.084,13.73311521]
[1772979184729,9.91284172,82.127,82.084,13.73311521]
[1772979188233,9.91284172,82.127,82.086,10.964]
[1772979188538,9.91284172,82.127,82.087,12.93809525]
[1772979191231,20.95915741,82.126,82.087,12.93809525]
[1772979191936,10.959,82.123,82.087,12.93809525]
[1772979193037,10.958,82.131,82.087,12.93809525]
[1772979197736,10.02279162,82.131,82.087,12.93809525]
[1772979197936,9.84031372,82.13,82.087,12.93809525]
[1772979198131,10.02279162,82.128,82.087,12.93809525]
[1772979198842,10.959,82.122,82.087,12.93809525]
[1772979205550,10.02279162,82.128,82.087,12.93809525]
[1772979205742,10.05906184,82.137,82.087,12.93809525]
[1772979205941,19.89676863,82.136,82.087,12.93809525]
[1772979206142,19.89676863,82.135,82.087,12.93809525]
[1772979206342,10.05906184,82.135,82.087,12.93809525]
[1772979206842,10.05906184,82.135,82.088,10.964]
[1772979207249,10.05906184,82.135,82.089,12.93809525]
[1772979208048,10.05906184,82.135,82.09,10.964]
[1772979208249,10.05906184,82.135,82.091,12.93809525]
[1772979209950,10.05906184,82.135,82.096,12.93809525]
[1772979210248,10.04965333,82.154,82.096,12.93809525]
[1772979210448,9.83474457,82.153,82.096,12.93809525]
[1772979210750,9.83474457,82.152,82.096,12.93809525]
[1772979210948,10.046504,82.148,82.108,12.93809525]
[1772979211250,10.046504,82.146,82.065,12.93809525]
[1772979211451,9.83454932,82.145,82.065,12.93809525]
[1772979211649,11.38486292,82.159,82.065,12.93809525]
[1772979211650,10.05047606,82.143,82.065,12.93809525]
[1772979211850,10.0503813,82.141,82.065,12.93809525]
[1772979212050,10.0503813,82.135,82.085,12.93809525]
[1772979212654,10.05873933,82.133,82.085,12.93809525]
[1772979213747,10.959,82.124,82.085,12.93809525]
[1772979213950,10.06230003,82.123,82.075,13.01390636]
[1772979214847,21.0565771,82.117,82.075,13.01390636]
[1772979215052,10.0965771,82.117,82.075,13.01390636]
[1772979219655,10.0965771,82.117,82.076,10.965]
[1772979220055,10.0965771,82.117,82.077,13.01390636]
[1772979221856,10.17710019,82.116,82.077,13.01390636]
[1772979222853,10.961,82.111,82.077,13.01390636]
[1772979224157,10.47497558,82.11,82.077,13.01390636]
[1772979224557,10.47840518,82.108,82.064,952.48025262]
[1772979225452,21.911,82.155,82.063,301.32730634]
[1772979225453,10.50082554,82.094,82.063,301.32730634]
[1772979226053,10.50079217,82.091,82.063,301.32730634]
[1772979226859,10.35197863,82.125,82.064,13.01390636]
[1772979227161,10.35197863,82.123,82.064,13.01390636]
[1772979227360,10.35526426,82.121,82.064,13.01390636]
[1772979227561,10.35526426,82.098,82.063,301.32730634]
[1772979228857,10.963,82.097,82.063,301.32730634]
[1772979229561,21.19696968,82.097,82.063,301.32730634]
[1772979229757,10.963,82.094,82.063,301.32730634]
[1772979229958,21.19691074,82.094,82.063,301.32730634]
[1772979230456,10.23391074,82.094,82.063,301.32730634]
[1772979233057,10.963,82.093,82.063,301.32730634]
[1772979234059,10.963,82.093,82.063,314.3412127]
[1772979235155,10.963,82.093,82.064,13.01390636]
[1772979235361,10.964,82.086,82.063,301.32730634]
[1772979240666,10.964,82.086,82.064,13.01390636]
[1772979243160,10.963,82.093,82.064,13.01390636]
[1772979245166,10.37790056,82.12,82.064,13.01390636]
[1772979246766,10.961,82.108,82.064,13.01390636]
[1772979253963,10.30085951,82.13,82.064,13.01390636]
[1772979254472,13.56218143,82.096,82.063,301.32730634]
[1772979255869,10.964,82.084,82.063,301.32730634]
[1772979267172,13.56218143,82.096,82.063,282.68330634]
[1772979267372,13.56218143,82.096,82.063,245.00730634]
[1772979267579,13.56218143,82.118,82.064,13.14823129]
[1772979267772,13.56218143,82.116,82.064,13.14823129]
[1772979267969,13.56218143,82.114,82.064,13.14823129]
[1772979268175,13.56218143,82.112,82.064,13.14823129]
[1772979268475,15.14727046,82.136,82.064,13.14823129]
[1772979268476,13.56218143,82.134,82.064,13.14823129]
[1772979268676,13.56218143,82.132,82.064,13.14823129]
[1772979268876,13.56218143,82.13,82.064,13.14823129]
[1772979269080,13.56218143,82.128,82.064,13.14823129]
[1772979269279,13.56218143,82.126,82.064,13.14823129]
[1772979269578,22.75586081,82.165,82.064,13.14823129]
[1772979269579,13.56218143,82.147,82.064,13.14823129]
[1772979269779,23.41528619,82.146,82.064,13.14823129]
[1772979269980,9.85310476,82.145,82.064,13.14823129]
[1772979270173,9.85310476,82.144,82.064,13.14823129]
[1772979270375,9.85310476,82.143,82.064,13.14823129]
[1772979270576,13.56218143,82.156,82.064,13.14823129]
[1772979270775,9.84961957,82.155,82.064,13.14823129]
[1772979270969,9.84961957,82.154,82.064,13.14823129]
[1772979271170,9.84961957,82.153,82.064,13.14823129]
[1772979271374,13.56218143,82.156,82.064,13.14823129]
[1772979271577,9.84444474,82.155,82.064,13.14823129]
[1772979271784,10.956,82.147,82.083,10.965]
[1772979271976,10.956,82.147,82.084,13.14823129]
[1772979272279,13.56218143,82.156,82.084,13.14823129]
[1772979272480,13.56218143,82.154,82.084,13.14823129]
[1772979272680,14.29296705,82.152,82.084,13.14823129]
[1772979273078,10.956,82.148,82.088,10.964]
[1772979273380,10.956,82.148,82.089,13.51740925]
[1772979275785,10.956,82.148,82.091,13.51740925]
[1772979276087,14.29296705,82.156,82.091,13.51740925]
[1772979276283,14.29296705,82.168,82.091,13.51740925]
[1772979276582,10.951,82.185,82.119,13.51740925]
[1772979277884,10.951,82.185,82.132,13.51740925]
[1772979278286,10.951,82.185,82.135,10.958]
[1772979278486,10.95,82.195,82.136,13.51740925]
[1772979278987,25.24296705,82.195,82.136,13.51740925]
[1772979279785,2.11775445,82.224,82.138,13.51740925]
[1772979279786,25.24296705,82.191,82.138,13.51740925]
[1772979281887,10.95,82.189,82.138,13.51740925]
[1772979282192,14.29296705,82.188,82.138,13.51740925]
[1772979283488,14.29296705,82.185,82.138,13.51740925]
[1772979284092,10.953,82.169,82.138,13.51740925]
[1772979285190,25.24596705,82.169,82.138,13.51740925]
[1772979287991,14.29296705,82.161,82.115,13.51740925]
[1772979289782,10.955,82.158,82.115,13.51740925]
[1772979292590,25.24796705,82.158,82.115,13.51740925]
[1772979292790,10.955,82.156,82.115,13.51740925]
[1772979292992,14.29296705,82.155,82.097,13.51740925]
[1772979293794,10.957,82.141,82.097,13.51740925]
[1772979297400,10.957,82.141,82.099,13.51740925]
[1772979299596,10.957,82.141,82.07,62.0]
[1772979299597,14.29296705,82.137,82.07,62.0]
[1772979299799,14.29296705,82.137,82.068,13.51740925]
[1772979300491,14.29296705,82.125,82.069,13.51740925]
[1772979301198,14.29296705,82.125,82.082,13.51740925]
[1772979301399,14.29296705,82.183,82.082,13.51740925]
[1772979301596,14.29296705,82.181,82.082,13.51740925]
[1772979301992,9.76173721,82.183,82.103,13.51740925]
[1772979302198,14.29296705,82.182,82.103,13.51740925]
[1772979302397,14.29296705,82.182,82.137,13.51740925]
[1772979302592,10.951,82.187,82.137,13.51740925]
[1772979303801,13.77197615,82.182,82.083,14.30481015]
[1772979304797,10.952,82.177,82.121,14.29016718]
[1772979305800,13.83342899,82.176,82.123,10.959]
[1772979305996,13.83342899,82.176,82.124,14.29016718]
[1772979308893,10.953,82.167,82.124,14.29016718]
[1772979309394,24.78642899,82.167,82.124,14.29016718]
[1772979310399,13.83342899,82.166,82.124,14.29016718]
[1772979314102,13.83342899,82.199,82.124,14.29016718]
[1772979314303,9.82695323,82.198,82.124,14.29016718]
[1772979314503,13.83342899,82.199,82.124,14.29016718]
[1772979314807,13.83342899,82.21,82.155,14.29016718]
[1772979315902,13.83342899,82.21,82.099,467.83429621]
[1772979315903,13.83342899,82.21,82.163,14.29016718]
[1772979316802,13.83342899,82.21,82.153,10.955]
[1772979317007,2.11760625,82.234,82.141,14.29016718]
[1772979317008,13.83342899,82.208,82.141,14.29016718]
[1772979317207,13.83342899,82.206,82.141,14.29016718]
[1772979317403,13.83342899,82.198,82.143,25.24616718]
[1772979318609,10.949,82.197,82.143,25.24616718]
[1772979318914,13.83342899,82.195,82.143,25.24616718]
[1772979321414,13.83342899,82.195,82.144,14.29016718]
[1772979321620,13.83342899,82.195,82.147,14.29016718]
[1772979322319,13.83342899,82.195,82.152,14.29016718]
[1772979328332,13.83342899,82.195,82.099,467.83429621]
[1772979328333,13.83342899,82.195,82.154,14.29016718]
[1772979329933,13.83342899,82.195,82.155,10.955]
[1772979330329,13.83342899,82.195,82.155,25.24516718]
[1772979330531,13.83342899,82.195,82.156,14.29016718]
[1772979331434,13.83342899,82.215,82.156,14.29016718]
[1772979332234,13.83342899,82.212,82.156,14.29016718]
[1772979332726,13.83342899,82.212,82.159,13.40244802]
[1772979333529,13.83342899,82.212,82.171,13.40244802]
[1772979334727,13.83342899,82.212,82.172,10.953]
[1772979335936,13.83342899,82.212,82.171,13.40244802]
[1772979341438,10.948,82.211,82.171,13.40244802]
[1772979341638,13.3009745,82.21,82.171,13.40244802]
[1772979342340,208.90339974,82.244,82.137,12.12973445]
[1772979342341,24.2469745,82.221,82.172,13.40244802]
[1772979342541,13.3009745,82.22,82.172,13.40244802]
[1772979342738,13.3009745,82.231,82.172,13.40244802]
[1772979342941,13.3009745,82.231,82.19,13.40244802]
[1772979343241,10.944,82.237,82.19,13.40244802]
[1772979343437,13.3009745,82.236,82.173,13.40244802]
[1772979343641,13.3009745,82.217,82.149,13.40244802]
[1772979344242,13.3009745,82.217,82.173,13.40244802]
[1772979344542,13.3009745,82.229,82.173,13.40244802]
[1772979344938,13.3009745,82.227,82.175,13.40244802]
[1772979345744,24.2469745,82.223,82.175,13.40244802]
[1772979346136,13.3009745,82.222,82.175,13.40244802]
[1772979348643,13.3009745,82.233,82.175,13.40244802]
[1772979349242,13.3009745,82.233,82.179,13.40244802]
[1772979349942,10.945,82.232,82.179,13.40244802]
[1772979350144,13.3009745,82.231,82.179,13.40244802]
[1772979350339,13.3009745,82.231,82.181,10.951]
[1772979350547,13.3009745,82.231,82.182,13.40244802]
[1772979350743,13.3009745,82.26,82.182,13.40244802]
[1772979351047,13.3009745,82.258,82.182,13.40244802]
[1772979351241,13.3009745,82.255,82.199,13.40244802]
[1772979351546,15.14727046,82.289,82.149,13.40244802]
[1772979351547,13.3009745,82.253,82.149,13.40244802]
[1772979351747,13.3009745,82.251,82.149,13.40244802]
[1772979351948,13.3009745,82.249,82.149,13.40244802]
[1772979352347,11.33538286,82.268,82.148,476.73870301]
[1772979352348,13.3009745,82.243,82.189,13.40244802]
[1772979352850,13.3009745,82.22,82.168,13.40244802]
[1772979354845,13.3009745,82.22,82.169,10.953]
[1772979355150,13.3009745,82.22,82.17,13.40244802]
[1772979356149,13.3009745,82.22,82.173,10.953]
[1772979356356,13.3009745,82.22,82.174,13.40244802]
[1772979356955,13.3009745,82.22,82.177,13.40244802]
[1772979359454,13.3009745,82.22,82.179,13.40244802]
[1772979360753,13.3009745,82.22,82.18,10.952]
[1772979361060,13.3009745,82.238,82.181,13.40244802]
[1772979361359,13.3009745,82.272,82.215,13.40244802]
[1772979361553,13.3009745,82.27,82.215,13.40244802]
[1772979361753,13.3009745,82.268,82.215,13.40244802]
[1772979362954,13.3009745,82.268,82.226,14.09548318]
[1772979363457,13.62928948,82.289,82.229,14.09548318]
[1772979363659,13.62928948,82.287,82.229,14.09548318]
[1772979363862,13.62928948,82.285,82.229,14.09548318]
[1772979365961,13.62928948,82.285,82.23,10.945]
[1772979366158,13.80342431,82.303,82.231,13.47319204]
[1772979366957,13.80342431,82.281,82.218,13.47319204]
[1772979368756,13.80342431,82.281,82.219,10.946]
[1772979368961,13.80342431,82.281,82.22,13.47319204]
[1772979369761,13.80342431,82.281,82.232,13.47319204]
[1772979370162,0.00014186,82.317,82.232,13.47319204]
[1772979370758,0.00014186,82.317,82.243,13.47319204]
[1772979370958,13.80342431,82.315,82.243,13.47319204]
[1772979371164,13.80342431,82.313,82.243,13.47319204]
[1772979371365,13.80342431,82.297,82.243,13.47319204]
[1772979371863,13.80342431,82.297,82.19,62.0]
[1772979371864,13.80342431,82.314,82.264,13.47319204]
[1772979372263,13.80342431,82.314,82.207,13.47319204]
[1772979372562,0.00014186,82.317,82.248,13.47319204]
[1772979372563,13.80342431,82.312,82.248,13.47319204]
[1772979372968,13.80342431,82.312,82.253,13.47319204]
[1772979374268,13.80342431,82.312,82.261,13.47319204]
[1772979377468,13.80342431,82.312,82.269,13.47319204]
[1772979378672,0.00014186,82.317,82.272,13.47319204]
[1772979379667,13.80342431,82.308,82.206,13.47319204]
[1772979380274,13.80342431,82.308,82.237,13.47319204]
[1772979381977,13.80342431,82.291,82.229,10.945]
[1772979382175,13.80342431,82.291,82.225,13.47319204]
[1772979382771,13.80342431,82.275,82.225,13.47319204]
[1772979382974,13.80342431,82.275,82.19,62.0]
[1772979382975,13.80342431,82.275,82.212,13.47319204]
[1772979383369,13.80342431,82.266,82.199,13.47319204]
[1772979384777,13.80342431,82.26,82.199,13.47319204]
[1772979385770,13.80342431,82.26,82.201,10.949]
[1772979385977,13.80342431,82.26,82.202,13.47319204]
[1772979387882,13.80342431,82.26,82.204,13.47319204]
[1772979388181,13.80342431,82.258,82.204,13.47319204]
[1772979389779,13.80342431,82.256,82.204,13.47319204]
[1772979391880,13.80342431,82.256,82.211,13.47319204]
[1772979392781,13.53412031,82.269,82.211,13.47319204]
[1772979393885,13.53412031,82.269,82.221,13.39011921]
[1772979395181,13.53412031,82.269,82.222,10.946]
[1772979395382,13.53412031,82.269,82.223,13.39011921]
[1772979395887,13.53412031,82.269,82.227,13.39011921]
[1772979396184,13.53412031,82.268,82.227,13.39011921]
[1772979396384,13.53412031,82.268,82.228,13.39011921]
[1772979396777,13.53412031,82.306,82.228,13.39011921]
[1772979396980,13.53412031,82.284,82.231,13.39011921]
[1772979398074,13.53412031,82.299,82.235,13.39011921]
[1772979398786,10.936,82.295,82.239,10.944]
[1772979399084,13.53412031,82.294,82.24,13.39011921]
[1772979400689,13.53412031,82.294,82.19,62.0]
[1772979400690,10.937,82.293,82.242,13.39011921]
[1772979400888,24.47112031,82.293,82.242,13.39011921]
[1772979401489,13.53412031,82.293,82.244,10.943]
[1772979401991,13.53412031,82.293,82.247,10.943]
[1772979402288,13.53412031,82.293,82.248,13.39011921]
[1772979403586,13.53412031,82.293,82.233,13.39011921]
[1772979403785,13.53412031,82.293,82.235,10.944]
[1772979403986,13.53412031,82.293,82.233,13.39011921]
[1772979404491,13.53412031,82.284,82.219,13.39011921]
[1772979405089,11.33538286,82.308,82.219,24.33611921]
[1772979405090,13.53412031,82.272,82.219,24.33611921]
[1772979406088,10.94,82.27,82.22,13.39011921]
[1772979406391,13.53412031,82.269,82.22,13.39011921]
[1772979406988,13.53412031,82.267,82.22,13.39011921]
[1772979407893,10.94,82.265,82.22,13.39011921]
[1772979408091,13.53412031,82.264,82.22,13.39011921]
[1772979409790,10.941,82.258,82.22,13.39011921]
[1772979410294,13.53412031,82.264,82.22,13.39011921]
[1772979413199,13.53412031,82.282,82.236,13.39011921]
[1772979413497,13.53412031,82.282,82.181,13.39011921]
[1772979413697,13.53412031,82.272,82.212,13.39011921]
[1772979414493,13.53412031,82.272,82.2,13.39011921]
[1772979415892,13.53412031,82.255,82.202,13.39011921]
[1772979416088,13.53412031,82.292,82.202,13.39011921]
[1772979416301,13.53412031,82.29,82.202,13.39011921]
[1772979416495,13.53412031,82.288,82.202,13.39011921]
[1772979416696,13.53412031,82.286,82.202,13.39011921]
[1772979416893,13.53412031,82.284,82.202,13.39011921]
[1772979417096,13.53412031,82.282,82.202,13.39011921]
[1772979417299,13.53412031,82.28,82.202,13.39011921]
[1772979417502,13.53412031,82.278,82.202,13.39011921]
[1772979417796,24.47512031,82.263,82.215,13.39011921]
[1772979419992,13.53412031,82.255,82.202,13.39011921]
[1772979420801,10.942,82.249,82.203,10.948]
[1772979420997,10.942,82.249,82.204,13.39011921]